[Event "Live Chess"]
[Site "Chess.com"]
[Date "2024.06.01"]
[Round "-"]
[White "educatedlad"]
[Black "gmnorfolk"]
[Result "0-1"]
[WhiteElo "1764"]
[BlackElo "2149"]
[TimeControl "300"]
[EndTime "10:39:51 PDT"]
[Termination "gmnorfolk won by checkmate"]

1. d4 {[%clk 0:04:58.8]} 1... Nf6 {[%clk 0:04:58.6]} 2. Bg5 {[%clk 0:04:56.4]}
2... d5 {[%clk 0:04:55.1]} 3. e3 {[%clk 0:04:54.9]} 3... c5 {[%clk 0:04:52.6]}
4. Bxf6 {[%clk 0:04:54.1]} 4... gxf6 {[%clk 0:04:51.3]} 5. dxc5 {[%clk 0:04:54]}
5... e5 {[%clk 0:04:49.5]} 6. Nc3 {[%clk 0:04:49.7]} 6... Be6 {[%clk 0:04:46.6]}
7. Qf3 {[%clk 0:04:46.7]} 7... e4 {[%clk 0:04:43.1]} 8. Qh5 {[%clk 0:04:44.4]}
8... Bxc5 {[%clk 0:04:34.6]} 9. Bb5+ {[%clk 0:04:42.8]} 9... Nc6 {[%clk
0:04:31.9]} 10. Nge2 {[%clk 0:04:40.4]} 10... a6 {[%clk 0:04:17.2]} 11. Bxc6+
{[%clk 0:04:38.2]} 11... bxc6 {[%clk 0:04:17.1]} 12. Nf4 {[%clk 0:04:36.9]}
12... Qc8 {[%clk 0:04:04.2]} 13. Nxe4 {[%clk 0:04:33.7]} 13... Be7 {[%clk
0:03:49.1]} 14. Nxe6 {[%clk 0:04:23.2]} 14... Qxe6 {[%clk 0:03:47]} 15. Nc3
{[%clk 0:04:20.5]} 15... d4 {[%clk 0:03:45.6]} 16. Ne2 {[%clk 0:04:01.7]} 16...
dxe3 {[%clk 0:03:42.4]} 17. O-O {[%clk 0:03:58.5]} 17... O-O {[%clk 0:03:29.4]}
18. Nf4 {[%clk 0:03:54.1]} 18... Qe4 {[%clk 0:03:23.7]} 19. fxe3 {[%clk
0:03:47.8]} 19... Kh8 {[%clk 0:03:12.3]} 20. Rf3 {[%clk 0:03:37.8]} 20... Rg8
{[%clk 0:03:08.6]} 21. Rh3 {[%clk 0:03:33.7]} 21... Rg7 {[%clk 0:03:04.4]} 22.
Rf1 {[%clk 0:03:13.2]} 22... Rag8 {[%clk 0:03:02.3]} 23. Rff3 {[%clk 0:03:01]}
23... Qxc2 {[%clk 0:02:57.4]} 24. Rfg3 {[%clk 0:02:33.1]} 24... Qc1+ {[%clk
0:02:49.8]} 25. Kf2 {[%clk 0:02:30]} 25... Qxb2+ {[%clk 0:02:38.6]} 26. Ne2
{[%clk 0:02:27.7]} 26... Qe5 {[%clk 0:02:15.9]} 27. Rxg7 {[%clk 0:02:20.9]}
27... Rxg7 {[%clk 0:02:10]} 28. Qxe5 {[%clk 0:02:19]} 28... fxe5 {[%clk
0:02:08.6]} 29. Ng3 {[%clk 0:02:12.4]} 29... Rg6 {[%clk 0:01:49.3]} 30. Nf5
{[%clk 0:02:06.3]} 30... Bf8 {[%clk 0:01:46.3]} 31. e4 {[%clk 0:02:01.7]} 31...
c5 {[%clk 0:01:45.5]} 32. Nh4 {[%clk 0:01:59.5]} 32... Rc6 {[%clk 0:01:39.7]}
33. Nf3 {[%clk 0:01:53.1]} 33... f6 {[%clk 0:01:33.1]} 34. Nh4 {[%clk 0:01:42]}
34... c4 {[%clk 0:01:30.7]} 35. Ke2 {[%clk 0:01:40.7]} 35... c3 {[%clk
0:01:27.9]} 36. Kd1 {[%clk 0:01:39.8]} 36... c2+ {[%clk 0:01:25.3]} 37. Kc1
{[%clk 0:01:36.6]} 37... Bb4 {[%clk 0:01:20.4]} 38. Rd3 {[%clk 0:01:27.8]} 38...
Bc3 {[%clk 0:01:14.9]} 39. Nf5 {[%clk 0:01:20.7]} 39... Bb2+ {[%clk 0:01:12.3]}
40. Kxb2 {[%clk 0:01:17.2]} 40... c1=Q+ {[%clk 0:01:11.4]} 41. Kb3 {[%clk
0:01:15.8]} 41... Qb1+ {[%clk 0:00:59.5]} 42. Ka4 {[%clk 0:01:13.7]} 42... Qb5+
{[%clk 0:00:56.9]} 43. Ka3 {[%clk 0:01:12.2]} 43... Qxd3+ {[%clk 0:00:55.5]} 44.
Ka4 {[%clk 0:01:11]} 44... Qb5+ {[%clk 0:00:54.2]} 45. Ka3 {[%clk 0:01:09.1]}
45... Rc3# {[%clk 0:00:53.7]} 0-1

[Event "Live Chess"]
[Site "Chess.com"]
[Date "2024.06.01"]
[Round "-"]
[White "chessfiction"]
[Black "elephantgerrald"]
[Result "1-0"]
[WhiteElo "2421"]
[BlackElo "756"]
[TimeControl "300"]
[EndTime "10:40:29 PDT"]
[Termination "chessfiction won by checkmate"]

1. e4 {[%clk 0:04:54.2]} 1... e5 {[%clk 0:04:58.7]} 2. Nf3 {[%clk 0:04:46.7]}
2... Nc6 {[%clk 0:04:56.1]} 3. Bc4 {[%clk 0:04:46.1]} 3... Nf6 {[%clk
0:04:53.1]} 4. d3 {[%clk 0:04:29.7]} 4... Bc5 {[%clk 0:04:50.2]} 5. c3 {[%clk
0:04:19.6]} 5... Ng4 {[%clk 0:04:47.3]} 6. O-O {[%clk 0:03:55.7]} 6... O-O
{[%clk 0:04:43.6]} 7. d4 {[%clk 0:03:50.7]} 7... exd4 {[%clk 0:04:42]} 8. cxd4
{[%clk 0:03:50.6]} 8... Bd6 {[%clk 0:04:37.3]} 9. e5 {[%clk 0:03:48.8]} 9... Be7
{[%clk 0:04:33.5]} 10. Nc3 {[%clk 0:03:45.4]} 10... d6 {[%clk 0:04:28.7]} 11. h3
{[%clk 0:03:43.3]} 11... Nh6 {[%clk 0:04:22.2]} 12. Bxh6 {[%clk 0:03:41.1]}
12... gxh6 {[%clk 0:04:21.1]} 13. Qd2 {[%clk 0:03:39.7]} 13... dxe5 {[%clk
0:04:16.5]} 14. Qxh6 {[%clk 0:03:32.6]} 14... Bf6 {[%clk 0:04:08.8]} 15. Ne4
{[%clk 0:03:26]} 15... exd4 {[%clk 0:04:03.9]} 16. Nxf6+ {[%clk 0:03:22.7]}
16... Kh8 {[%clk 0:04:00.7]} 17. Qxh7# {[%clk 0:03:21.9]} 1-0

[Event "Live Chess"]
[Site "Chess.com"]
[Date "2024.06.01"]
[Round "-"]
[White "AnotherOneBadPlayer"]
[Black "grillage"]
[Result "1-0"]
[WhiteElo "2225"]
[BlackElo "1883"]
[TimeControl "300"]
[EndTime "10:40:30 PDT"]
[Termination "AnotherOneBadPlayer won by resignation"]

1. Nf3 {[%clk 0:04:56.4]} 1... Nf6 {[%clk 0:04:57.9]} 2. b3 {[%clk 0:04:55.2]}
2... d5 {[%clk 0:04:46.8]} 3. Bb2 {[%clk 0:04:52.6]} 3... Bg4 {[%clk 0:04:46.2]}
4. h3 {[%clk 0:04:48.7]} 4... Bxf3 {[%clk 0:04:43.7]} 5. exf3 {[%clk 0:04:44.3]}
5... e6 {[%clk 0:04:43.2]} 6. Be2 {[%clk 0:04:42.1]} 6... Be7 {[%clk 0:04:38.8]}
7. O-O {[%clk 0:04:41.4]} 7... c5 {[%clk 0:04:37.6]} 8. d3 {[%clk 0:04:39.3]}
8... Nc6 {[%clk 0:04:36.4]} 9. Nd2 {[%clk 0:04:37.1]} 9... Qc7 {[%clk 0:04:33]}
10. a4 {[%clk 0:04:32.8]} 10... O-O {[%clk 0:04:30.8]} 11. g3 {[%clk 0:04:28.1]}
11... Rac8 {[%clk 0:04:06.5]} 12. f4 {[%clk 0:04:19.8]} 12... Nh5 {[%clk
0:03:58.2]} 13. Bxh5 {[%clk 0:04:15.1]} 1-0

[Event "Live Chess"]
[Site "Chess.com"]
[Date "2024.06.01"]
[Round "-"]
[White "chess5013"]
[Black "missedJariChance"]
[Result "0-1"]
[WhiteElo "1233"]
[BlackElo "1354"]
[TimeControl "300"]
[EndTime "10:40:37 PDT"]
[Termination "missedJariChance won by checkmate"]

1. d4 {[%clk 0:04:58.2]} 1... d5 {[%clk 0:04:58.7]} 2. Bf4 {[%clk 0:04:57.2]}
2... e6 {[%clk 0:04:57.5]} 3. e3 {[%clk 0:04:56.2]} 3... c5 {[%clk 0:04:56.3]}
4. c3 {[%clk 0:04:55.5]} 4... Nc6 {[%clk 0:04:53.9]} 5. Nd2 {[%clk 0:04:54.1]}
5... Bd6 {[%clk 0:04:50.5]} 6. Bg3 {[%clk 0:04:52.5]} 6... Nf6 {[%clk
0:04:49.4]} 7. Ngf3 {[%clk 0:04:51.3]} 7... O-O {[%clk 0:04:48.2]} 8. Bd3 {[%clk
0:04:49.9]} 8... Re8 {[%clk 0:04:44.9]} 9. Qc2 {[%clk 0:04:46.2]} 9... e5 {[%clk
0:04:39.3]} 10. dxe5 {[%clk 0:04:44]} 10... Nxe5 {[%clk 0:04:36.9]} 11. Nxe5
{[%clk 0:04:42.4]} 11... Bxe5 {[%clk 0:04:35.7]} 12. Nf3 {[%clk 0:04:35.6]}
12... Bc7 {[%clk 0:04:31.3]} 13. Bh4 {[%clk 0:04:30.7]} 13... c4 {[%clk
0:04:22.4]} 14. Bxf6 {[%clk 0:04:00.2]} 14... Qxf6 {[%clk 0:04:20.8]} 15. Be2
{[%clk 0:03:54.4]} 15... Bf5 {[%clk 0:04:10.2]} 16. Qd2 {[%clk 0:03:48.3]} 16...
Rad8 {[%clk 0:04:06.4]} 17. O-O {[%clk 0:03:46.8]} 17... Be4 {[%clk 0:04:02.7]}
18. b3 {[%clk 0:03:39.2]} 18... Qh6 {[%clk 0:04:00.9]} 19. h3 {[%clk 0:03:28.2]}
19... Qd6 {[%clk 0:03:57.1]} 20. g3 {[%clk 0:03:18]} 20... Qh6 {[%clk
0:03:54.6]} 21. Kh2 {[%clk 0:03:11.1]} 21... Qf6 {[%clk 0:03:49.7]} 22. Nd4
{[%clk 0:03:00.3]} 22... h6 {[%clk 0:03:43.4]} 23. bxc4 {[%clk 0:02:57.7]} 23...
dxc4 {[%clk 0:03:40]} 24. Bxc4 {[%clk 0:02:54.9]} 24... Bb6 {[%clk 0:03:32.7]}
25. Bd3 {[%clk 0:02:50.9]} 25... Rd5 {[%clk 0:03:19.4]} 26. Rab1 {[%clk
0:02:36.6]} 26... Bxd3 {[%clk 0:03:08.8]} 27. Qxd3 {[%clk 0:02:34.3]} 27... Rh5
{[%clk 0:03:06.2]} 28. Qe2 {[%clk 0:02:24.1]} 28... Rc5 {[%clk 0:02:53.8]} 29.
Rb3 {[%clk 0:02:19.1]} 29... Qg6 {[%clk 0:02:42.2]} 30. Qg4 {[%clk 0:02:08]}
30... Rg5 {[%clk 0:02:31.4]} 31. Qf3 {[%clk 0:02:03.4]} 31... Bxd4 {[%clk
0:02:25.4]} 32. cxd4 {[%clk 0:02:00.8]} 32... b6 {[%clk 0:02:21.8]} 33. a4
{[%clk 0:01:56]} 33... Qc2 {[%clk 0:02:16.2]} 34. Rb5 {[%clk 0:01:50.8]} 34...
Qxa4 {[%clk 0:02:12.9]} 35. Rxg5 {[%clk 0:01:46.2]} 35... hxg5 {[%clk 0:02:11]}
36. Qb7 {[%clk 0:01:41.2]} 36... Qb5 {[%clk 0:02:07.6]} 37. Kg2 {[%clk
0:01:37.1]} 37... a6 {[%clk 0:02:05.4]} 38. d5 {[%clk 0:01:26.7]} 38... a5
{[%clk 0:02:02.8]} 39. d6 {[%clk 0:01:25.1]} 39... Rd8 {[%clk 0:01:57.4]} 40.
Qc7 {[%clk 0:01:21.8]} 40... Qd7 {[%clk 0:01:55.3]} 41. Qxd7 {[%clk 0:01:12.2]}
41... Rxd7 {[%clk 0:01:53.8]} 42. Rb1 {[%clk 0:01:09.5]} 42... Rxd6 {[%clk
0:01:50.5]} 43. Kf3 {[%clk 0:01:08.7]} 43... f6 {[%clk 0:01:49.4]} 44. Ke4
{[%clk 0:01:06.8]} 44... Kf7 {[%clk 0:01:47.6]} 45. f4 {[%clk 0:01:03.9]} 45...
gxf4 {[%clk 0:01:45.7]} 46. exf4 {[%clk 0:01:02.8]} 46... a4 {[%clk 0:01:42.1]}
47. Rb4 {[%clk 0:00:57.2]} 47... a3 {[%clk 0:01:39.6]} 48. Ra4 {[%clk
0:00:54.1]} 48... b5 {[%clk 0:01:36.9]} 49. Rxa3 {[%clk 0:00:52.8]} 49... Rb6
{[%clk 0:01:36]} 50. Rb3 {[%clk 0:00:51.2]} 50... b4 {[%clk 0:01:34.8]} 51. Kd4
{[%clk 0:00:47.9]} 51... Kg6 {[%clk 0:01:31.9]} 52. g4 {[%clk 0:00:41.5]} 52...
f5 {[%clk 0:01:29]} 53. g5 {[%clk 0:00:26.7]} 53... Kh5 {[%clk 0:01:27.2]} 54.
Kc4 {[%clk 0:00:25.1]} 54... Kh4 {[%clk 0:01:24.8]} 55. Rxb4 {[%clk 0:00:24.6]}
55... Rxb4+ {[%clk 0:01:23.5]} 56. Kxb4 {[%clk 0:00:24.2]} 56... Kxh3 {[%clk
0:01:21.9]} 57. Kc5 {[%clk 0:00:22.1]} 57... Kg4 {[%clk 0:01:21.4]} 58. Kd5
{[%clk 0:00:20.4]} 58... Kxf4 {[%clk 0:01:20.9]} 59. Kd4 {[%clk 0:00:19.2]}
59... Kxg5 {[%clk 0:01:17.9]} 60. Ke3 {[%clk 0:00:18.9]} 60... Kg4 {[%clk
0:01:16.8]} 61. Ke2 {[%clk 0:00:17.3]} 61... Kg3 {[%clk 0:01:15.7]} 62. Ke3
{[%clk 0:00:16.5]} 62... f4+ {[%clk 0:01:13.4]} 63. Ke2 {[%clk 0:00:15.8]} 63...
Kg2 {[%clk 0:01:12.6]} 64. Ke1 {[%clk 0:00:14.2]} 64... f3 {[%clk 0:01:12]} 65.
Kd2 {[%clk 0:00:13.3]} 65... f2 {[%clk 0:01:10.9]} 66. Ke3 {[%clk 0:00:13]}
66... f1=Q {[%clk 0:01:09.5]} 67. Kd4 {[%clk 0:00:11.6]} 67... Qe2 {[%clk
0:01:05.8]} 68. Kd5 {[%clk 0:00:11.1]} 68... Kf3 {[%clk 0:01:05]} 69. Kd6 {[%clk
0:00:10.5]} 69... Ke4 {[%clk 0:01:04.3]} 70. Kc6 {[%clk 0:00:09.8]} 70... Qd3
{[%clk 0:01:02.9]} 71. Kc7 {[%clk 0:00:09]} 71... Kd5 {[%clk 0:01:02.4]} 72. Kb7
{[%clk 0:00:08.1]} 72... Qb5+ {[%clk 0:01:01]} 73. Ka8 {[%clk 0:00:05.9]} 73...
Kc6 {[%clk 0:00:57.2]} 74. Ka7 {[%clk 0:00:05]} 74... Qb7# {[%clk 0:00:56.4]}
0-1

[Event "Live Chess"]
[Site "Chess.com"]
[Date "2024.06.01"]
[Round "-"]
[White "PureDashingOctopus"]
[Black "Ksenia_2013"]
[Result "1-0"]
[WhiteElo "2234"]
[BlackElo "768"]
[TimeControl "300"]
[EndTime "10:40:50 PDT"]
[Termination "PureDashingOctopus won by checkmate"]

1. e4 {[%clk 0:04:54.5]} 1... e5 {[%clk 0:04:58.3]} 2. Nf3 {[%clk 0:04:52.8]}
2... Nc6 {[%clk 0:04:55.7]} 3. Bb5 {[%clk 0:04:51.2]} 3... Bc5 {[%clk
0:04:54.2]} 4. c3 {[%clk 0:04:49.4]} 4... Nf6 {[%clk 0:04:51.4]} 5. d4 {[%clk
0:04:48]} 5... exd4 {[%clk 0:04:50.2]} 6. e5 {[%clk 0:04:47.3]} 6... Nxe5 {[%clk
0:04:46.8]} 7. Nxe5 {[%clk 0:04:45.8]} 7... O-O {[%clk 0:04:41.5]} 8. cxd4
{[%clk 0:04:39.4]} 8... Bb4+ {[%clk 0:04:39.2]} 9. Bd2 {[%clk 0:04:37.7]} 9...
Bxd2+ {[%clk 0:04:30.3]} 10. Nxd2 {[%clk 0:04:37.6]} 10... Ng4 {[%clk
0:04:27.5]} 11. Nxg4 {[%clk 0:04:34.8]} 11... Qg5 {[%clk 0:04:22.4]} 12. Be2
{[%clk 0:04:31.7]} 12... Qd5 {[%clk 0:04:15.1]} 13. O-O {[%clk 0:04:28.1]} 13...
b6 {[%clk 0:04:10.2]} 14. Bf3 {[%clk 0:04:26.6]} 14... Qg5 {[%clk 0:04:04.8]}
15. Bxa8 {[%clk 0:04:25.7]} 15... d5 {[%clk 0:04:00.7]} 16. Ne3 {[%clk
0:04:22.6]} 16... Bh3 {[%clk 0:03:58.2]} 17. Bxd5 {[%clk 0:04:19.7]} 17... Rd8
{[%clk 0:03:51.7]} 18. Bf3 {[%clk 0:04:18]} 18... Rxd4 {[%clk 0:03:45.6]} 19.
Kh1 {[%clk 0:04:14.5]} 19... Bxg2+ {[%clk 0:03:40]} 20. Bxg2 {[%clk 0:04:12.7]}
20... Rh4 {[%clk 0:03:31.2]} 21. Nf3 {[%clk 0:04:10.5]} 21... Qg4 {[%clk
0:03:15.2]} 22. Qd8# {[%clk 0:04:08.3]} 1-0

[Event "Live Chess"]
[Site "Chess.com"]
[Date "2024.06.01"]
[Round "-"]
[White "dl_chess"]
[Black "Berdgross"]
[Result "1-0"]
[WhiteElo "1171"]
[BlackElo "590"]
[TimeControl "300"]
[EndTime "10:40:52 PDT"]
[Termination "dl_chess won on time"]

1. e4 {[%clk 0:04:55.5]} 1... e5 {[%clk 0:04:59.9]} 2. Bc4 {[%clk 0:04:53.9]}
2... d6 {[%clk 0:04:59.8]} 3. d4 {[%clk 0:04:49.1]} 3... exd4 {[%clk 0:04:57.8]}
4. Qxd4 {[%clk 0:04:47.2]} 4... Nf6 {[%clk 0:04:49.3]} 5. e5 {[%clk 0:04:40.1]}
5... dxe5 {[%clk 0:04:46.6]} 6. Bxf7+ {[%clk 0:04:38.9]} 6... Kxf7 {[%clk
0:04:44.4]} 7. Qxd8 {[%clk 0:04:37.7]} 7... Bb4+ {[%clk 0:04:34.7]} 8. Bd2
{[%clk 0:04:10.8]} 8... Rxd8 {[%clk 0:04:24.7]} 9. Bxb4 {[%clk 0:04:09.6]} 9...
Nc6 {[%clk 0:04:19.5]} 10. Nc3 {[%clk 0:04:04.4]} 10... Nxb4 {[%clk 0:04:17.5]}
11. Rc1 {[%clk 0:03:56.6]} 11... a5 {[%clk 0:04:04.2]} 12. Nge2 {[%clk 0:03:54]}
12... Be6 {[%clk 0:03:54.9]} 13. a3 {[%clk 0:03:51.4]} 13... Nbd5 {[%clk
0:03:50.2]} 14. Nb5 {[%clk 0:03:46.5]} 14... Bd7 {[%clk 0:03:38.1]} 15. Nbc3
{[%clk 0:03:41.8]} 15... Nxc3 {[%clk 0:03:36.6]} 16. Nxc3 {[%clk 0:03:40.9]}
16... Bc6 {[%clk 0:03:31.8]} 17. O-O {[%clk 0:03:38.8]} 17... Ne4 {[%clk
0:03:24.5]} 18. Ne2 {[%clk 0:03:31.4]} 18... Nd2 {[%clk 0:03:17.2]} 19. Rfe1
{[%clk 0:03:26.5]} 19... Nc4 {[%clk 0:03:07.7]} 20. Rb1 {[%clk 0:03:16.3]} 20...
Nd2 {[%clk 0:03:02.8]} 21. Rbd1 {[%clk 0:03:14.2]} 21... Ba4 {[%clk 0:02:41.1]}
22. b3 {[%clk 0:03:12.7]} 22... Bb5 {[%clk 0:02:32.3]} 23. Nc3 {[%clk
0:03:08.3]} 23... Bc6 {[%clk 0:02:18.8]} 24. Re2 {[%clk 0:02:59.9]} 24... Nf3+
{[%clk 0:02:10.1]} 25. Kh1 {[%clk 0:02:28.4]} 25... Rxd1+ {[%clk 0:01:59.8]} 26.
Nxd1 {[%clk 0:02:25.8]} 26... Nd4 {[%clk 0:01:49.1]} 27. Rxe5 {[%clk 0:02:20]}
27... Nxc2 {[%clk 0:01:39]} 28. a4 {[%clk 0:02:13.1]} 28... Rd8 {[%clk
0:01:29.5]} 29. Nc3 {[%clk 0:02:02.8]} 29... Rd3 {[%clk 0:01:14.8]} 30. Ne2
{[%clk 0:01:56.2]} 30... Rd1+ {[%clk 0:01:11.8]} 31. Ng1 {[%clk 0:01:55]} 31...
Rd2 {[%clk 0:00:57.9]} 32. f3 {[%clk 0:01:40.4]} 32... Rd1 {[%clk 0:00:44.6]}
33. h3 {[%clk 0:01:28.7]} 33... Nd4 {[%clk 0:00:39]} 34. Kh2 {[%clk 0:01:19.9]}
34... Kf6 {[%clk 0:00:33.4]} 35. Re3 {[%clk 0:01:14.6]} 35... Nf5 {[%clk
0:00:25.7]} 36. Rc3 {[%clk 0:01:06.6]} 36... Bd5 {[%clk 0:00:13.3]} 37. Rc5
{[%clk 0:01:03.5]} 37... Bxb3 {[%clk 0:00:10]} 38. Rxc7 {[%clk 0:01:01.5]} 38...
Bxa4 {[%clk 0:00:07.6]} 39. Rxb7 {[%clk 0:00:59.4]} 39... Rxg1 {[%clk
0:00:05.6]} 40. Kxg1 {[%clk 0:00:56.3]} 40... Bc6 {[%clk 0:00:01.2]} 41. Rb6
{[%clk 0:00:54.8]} 1-0

[Event "Live Chess"]
[Site "Chess.com"]
[Date "2024.06.01"]
[Round "-"]
[White "SavagePawn7"]
[Black "ossie57"]
[Result "0-1"]
[WhiteElo "684"]
[BlackElo "1633"]
[TimeControl "300"]
[EndTime "10:40:54 PDT"]
[Termination "ossie57 won by resignation"]

1. e4 {[%clk 0:04:55.5]} 1... c5 {[%clk 0:04:58.5]} 2. d4 {[%clk 0:04:53.9]}
2... cxd4 {[%clk 0:04:57.1]} 3. c3 {[%clk 0:04:52.6]} 3... dxc3 {[%clk
0:04:55.5]} 4. Nxc3 {[%clk 0:04:51.4]} 4... e6 {[%clk 0:04:53.6]} 5. Nf3 {[%clk
0:04:49.3]} 5... Nc6 {[%clk 0:04:49.1]} 6. Bc4 {[%clk 0:04:46.8]} 6... Bb4
{[%clk 0:04:47.7]} 7. O-O {[%clk 0:04:41.6]} 7... Bxc3 {[%clk 0:04:43.6]} 8.
bxc3 {[%clk 0:04:40.1]} 8... Nge7 {[%clk 0:04:42.7]} 9. Qe2 {[%clk 0:04:36.7]}
9... O-O {[%clk 0:04:41.5]} 10. Rd1 {[%clk 0:04:28.3]} 10... Qc7 {[%clk
0:04:40.7]} 11. g3 {[%clk 0:04:17.2]} 11... Ng6 {[%clk 0:04:39.4]} 12. Qd3
{[%clk 0:03:57.2]} 12... Nce5 {[%clk 0:04:36.6]} 13. Nxe5 {[%clk 0:03:53.6]}
13... Nxe5 {[%clk 0:04:35.1]} 14. Qf1 {[%clk 0:03:34.5]} 14... Qxc4 {[%clk
0:04:31.1]} 15. Ba3 {[%clk 0:03:28.3]} 15... Qxf1+ {[%clk 0:04:19.7]} 16. Kxf1
{[%clk 0:03:27.1]} 16... Re8 {[%clk 0:04:18.7]} 17. Rab1 {[%clk 0:03:16.6]}
17... Nc4 {[%clk 0:04:07.4]} 18. Bb4 {[%clk 0:03:09.1]} 18... a5 {[%clk
0:04:04.2]} 19. Bc5 {[%clk 0:02:59.3]} 19... b6 {[%clk 0:04:01.5]} 20. Bd4
{[%clk 0:02:55.1]} 20... Ba6 {[%clk 0:03:57.9]} 21. Kg1 {[%clk 0:02:45.8]} 21...
Rab8 {[%clk 0:03:50.4]} 22. Rd3 {[%clk 0:02:36.2]} 22... Na3 {[%clk 0:03:44.7]}
23. Rbd1 {[%clk 0:02:28.2]} 23... Bxd3 {[%clk 0:03:43.4]} 24. Rxd3 {[%clk
0:02:24.7]} 24... e5 {[%clk 0:03:41.1]} 25. Be3 {[%clk 0:02:20.2]} 25... h6
{[%clk 0:03:40.4]} 26. h4 {[%clk 0:02:12.9]} 26... Red8 {[%clk 0:03:36.8]} 27.
g4 {[%clk 0:02:11.4]} 27... Nc4 {[%clk 0:03:35.7]} 28. Bc1 {[%clk 0:02:07.7]}
28... Nd6 {[%clk 0:03:28.3]} 29. g5 {[%clk 0:02:03.7]} 29... Nxe4 {[%clk
0:03:27.3]} 30. gxh6 {[%clk 0:01:57.9]} 30... gxh6 {[%clk 0:03:25.2]} 31. f3
{[%clk 0:01:54.9]} 31... Nc5 {[%clk 0:03:19.1]} 32. Rd2 {[%clk 0:01:43.1]} 32...
Kh7 {[%clk 0:03:18]} 33. Rg2 {[%clk 0:01:34.9]} 33... Rg8 {[%clk 0:03:17.4]} 34.
Rxg8 {[%clk 0:01:31.9]} 34... Rxg8+ {[%clk 0:03:17.3]} 35. Kf2 {[%clk
0:01:30.3]} 35... Nd3+ {[%clk 0:03:16]} 0-1

[Event "Live Chess"]
[Site "Chess.com"]
[Date "2024.06.01"]
[Round "-"]
[White "almalikhari"]
[Black "TigerTank70"]
[Result "0-1"]
[WhiteElo "2292"]
[BlackElo "2197"]
[TimeControl "300"]
[EndTime "10:41:02 PDT"]
[Termination "TigerTank70 won by checkmate"]

1. e4 {[%clk 0:04:57.4]} 1... e5 {[%clk 0:04:59]} 2. Nf3 {[%clk 0:04:56.3]} 2...
Nc6 {[%clk 0:04:58.3]} 3. Bc4 {[%clk 0:04:55.8]} 3... Nf6 {[%clk 0:04:55.6]} 4.
O-O {[%clk 0:04:55.1]} 4... Be7 {[%clk 0:04:54.3]} 5. d3 {[%clk 0:04:52.8]} 5...
O-O {[%clk 0:04:53.4]} 6. Re1 {[%clk 0:04:51.2]} 6... d5 {[%clk 0:04:51.6]} 7.
exd5 {[%clk 0:04:50.1]} 7... Nxd5 {[%clk 0:04:50.9]} 8. Nxe5 {[%clk 0:04:49.5]}
8... Nxe5 {[%clk 0:04:48.8]} 9. Rxe5 {[%clk 0:04:49.4]} 9... Nf6 {[%clk
0:04:48]} 10. Nc3 {[%clk 0:04:44.3]} 10... Bd6 {[%clk 0:04:47.2]} 11. Re1 {[%clk
0:04:43.3]} 11... Ng4 {[%clk 0:04:43]} 12. g3 {[%clk 0:04:41.4]} 12... Nxh2
{[%clk 0:04:40]} 13. Kxh2 {[%clk 0:04:38.8]} 13... Qh4+ {[%clk 0:04:38.5]} 14.
Kg1 {[%clk 0:04:38.7]} 14... Bxg3 {[%clk 0:04:36.4]} 15. fxg3 {[%clk 0:04:21.5]}
15... Qxg3+ {[%clk 0:04:36.3]} 16. Kh1 {[%clk 0:04:20.4]} 16... Bg4 {[%clk
0:04:26.3]} 17. Ne4 {[%clk 0:04:03.4]} 17... Bf3+ {[%clk 0:04:20.2]} 18. Qxf3
{[%clk 0:04:01.9]} 18... Qxf3+ {[%clk 0:04:20.1]} 19. Kg1 {[%clk 0:04:01.7]}
19... Kh8 {[%clk 0:04:09.1]} 20. Re3 {[%clk 0:03:45.8]} 20... Qd1+ {[%clk
0:04:04.2]} 21. Kf2 {[%clk 0:03:41.8]} 21... f5 {[%clk 0:03:58.5]} 22. Ng5
{[%clk 0:03:37.5]} 22... f4 {[%clk 0:03:57.7]} 23. Re2 {[%clk 0:03:30.5]} 23...
h6 {[%clk 0:03:45.1]} 24. Nf7+ {[%clk 0:03:24.9]} 24... Kh7 {[%clk 0:03:33.3]}
25. b3 {[%clk 0:03:14.1]} 25... Rae8 {[%clk 0:03:21]} 26. Bb2 {[%clk 0:03:11.9]}
26... Rxe2+ {[%clk 0:03:16.3]} 27. Kf3 {[%clk 0:03:10.2]} 27... Re3+ {[%clk
0:03:13.2]} 28. Kxf4 {[%clk 0:03:09.5]} 28... Qf3# {[%clk 0:03:12.3]} 0-1

[Event "Live Chess"]
[Site "Chess.com"]
[Date "2024.06.01"]
[Round "-"]
[White "GEMdzq"]
[Black "Richardallis"]
[Result "1-0"]
[WhiteElo "2330"]
[BlackElo "1961"]
[TimeControl "300"]
[EndTime "10:41:02 PDT"]
[Termination "GEMdzq won by resignation"]

1. e4 {[%clk 0:04:57.9]} 1... d5 {[%clk 0:04:58.6]} 2. exd5 {[%clk 0:04:56.8]}
2... Nf6 {[%clk 0:04:58]} 3. Nc3 {[%clk 0:04:56.5]} 3... Nxd5 {[%clk 0:04:56.8]}
4. Bb5+ {[%clk 0:04:55.6]} 4... c6 {[%clk 0:04:55.8]} 5. Be2 {[%clk 0:04:54.4]}
5... Bf5 {[%clk 0:04:53.4]} 6. d4 {[%clk 0:04:51.2]} 6... e6 {[%clk 0:04:51.9]}
7. Nf3 {[%clk 0:04:49.8]} 7... Bd6 {[%clk 0:04:50.7]} 8. O-O {[%clk 0:04:46.1]}
8... Nd7 {[%clk 0:04:49.5]} 9. Bg5 {[%clk 0:04:36.8]} 9... Qb6 {[%clk
0:04:47.3]} 10. Nxd5 {[%clk 0:04:35.4]} 10... cxd5 {[%clk 0:04:46]} 11. h3
{[%clk 0:04:33.4]} 11... Qxb2 {[%clk 0:04:40]} 12. Rb1 {[%clk 0:04:30.3]} 12...
Qxa2 {[%clk 0:04:37.7]} 13. Rxb7 {[%clk 0:04:28.9]} 13... Qxc2 {[%clk
0:04:34.4]} 14. Bb5 {[%clk 0:04:23.8]} 14... O-O {[%clk 0:04:28.8]} 15. Qxc2
{[%clk 0:04:20.9]} 15... Bxc2 {[%clk 0:04:27.1]} 16. Rxd7 {[%clk 0:04:19.6]}
16... a5 {[%clk 0:04:20.1]} 17. Rxd6 {[%clk 0:04:18.1]} 1-0